fUSD/lending_fUSD_20240211
["ID","MTS","AMOUNT","RATE_DAILY","PERIOD"]
[313732266,1707629894672,2863.92580556,0.00021892,2]
[313732267,1707629894691,4000.0,0.00021892,2]
[313732268,1707629894710,1000.0,0.00021892,2]
[313732269,1707629894729,1000.0,0.00021892,2]
[313732270,1707629894748,601.48705944,0.00021892,2]
[313732271,1707629904772,398.51294056,0.00022001,2]
[313732272,1707629904792,4348.26527073,0.00022001,2]
[313732273,1707629906108,888.5103698,0.00022001,2]
[313732274,1707629907390,176.24,0.00021377,2]
[313732275,1707629910669,221.31148748,0.00022001,2]
[313732276,1707629912708,200.0,0.00021381,2]
[313732277,1707629912734,165.7,0.00021381,2]
[313732278,1707629926665,590.44,0.00021918,2]
[313732279,1707629927181,500.0,0.00022001,2]
[313732280,1707629928103,888.5103698,0.00022001,2]
[313732281,1707629942283,888.5103698,0.00022001,2]
[313732282,1707629947172,500.0,0.00022001,2]
[313732283,1707629953379,278.39315175,0.00022,2]
[313732284,1707629958124,888.5103698,0.00022001,2]
[313732285,1707629963570,408.62760147,0.00022001,2]
[313732286,1707629965416,516.37,0.00019474,2]
[313732287,1707629965629,516.37,0.00021738,2]
[313732288,1707629974182,746.49158462,0.00022001,2]
[313732289,1707629976491,2508.83404052,0.00021714,2]
[313732290,1707629977876,2667.912243,0.00021892,2]
[313732291,1707629986342,250.0,0.00021387,2]
[313732292,1707629996130,151.27783915,0.00021895,2]
[313732293,1707630000402,356.2821577,0.00022,2]
[313732294,1707630009132,-280.0,0.00022001,2]
[313732295,1707630017451,3142.11308564,0.00022,2]
[313732297,1707630026507,216.23,0.00021377,2]
[313732298,1707630033426,3142.11308564,0.00021172,2]
[313732299,1707630045997,176.86,0.00016712,2]
[313732300,1707630049197,200.0,0.00021372,2]
[313732301,1707630049422,3173.33410049,0.00021171,2]
[313732302,1707630050322,421.74823004,0.00021394,2]
[313732304,1707630064142,150.0,0.00021895,2]
[313732305,1707630067684,3142.11308564,0.00021171,2]
[313732306,1707630087431,3142.11308564,0.00021171,2]
[313732307,1707630107436,2104.25638016,0.00021171,2]
[313732308,1707630132390,150.0,0.00021398,2]
[313732309,1707630142190,737.6,0.00021341,2]
[313732316,1707630173554,1294.84852586,0.00021806,2]
[313732317,1707630173867,1294.84852586,0.00021933,2]
[313732320,1707630177556,354.79117232,0.00021902,2]
[313732321,1707630232076,225.81899865,0.00021895,2]
[313732322,1707630233519,200.0,0.00021326,2]
[313732323,1707630234531,177.2,0.00021895,2]
[313732324,1707630239075,165.55,0.0001706,2]
[313732325,1707630245624,258.41,0.00021895,2]
[313732326,1707630259187,2067.57,0.00021299,2]
[313732327,1707630273648,164.96,0.00021285,2]
[313732328,1707630273904,150.52,0.00021445,2]
[313732329,1707630274321,150.52,0.00021604,2]
[313732330,1707630274561,150.52,0.00021764,2]
[313732331,1707630274814,150.52,0.00021923,2]
[313732332,1707630305598,2000.0,0.00021246,2]
[313732333,1707630309590,5578.78089589,0.00016638,2]
[313732334,1707630326180,5844.94682051,0.00016638,2]
[313732335,1707630326282,1717.51559866,0.00021246,2]
[313732336,1707630326302,6388.01440134,0.00021246,2]
[313732337,1707630326357,250.0,0.00021918,2]
[313732338,1707630342744,273.59,0.00021235,2]
[313732339,1707630346342,5213.40299874,0.00022,2]
[313732340,1707630346516,333.14776528,0.00021296,2]
[313732341,1707630350227,181.53570048,0.00022,2]
[313732342,1707630355893,1209.8078839,0.00022,2]
[313732343,1707630356524,500.0,0.00022,3]
[313732344,1707630364979,500.0,0.00022,4]
[313732345,1707630375503,500.0,0.00022,5]
[313732346,1707630383075,500.0,0.00022,2]
[313732347,1707630401783,310.19,0.00021235,2]
[313732349,1707630415407,3840.31125026,0.00021235,2]
[313732350,1707630415429,20000.0,0.00021235,2]
[313732351,1707630415449,59.68874974,0.00021235,2]
[313732352,1707630423755,869.67746725,0.00022,2]
[313732353,1707630427023,200.0,0.00021237,2]
[313732354,1707630447930,150.0,0.00021237,2]
[313732355,1707630449208,537.0,0.0001932,2]
[313732356,1707630449329,537.0,0.00021583,2]
[313732357,1707630450882,1924.7,0.00021237,2]
[313732358,1707630453702,250.0,0.00021237,2]
[313732359,1707630455730,869.67746725,0.00022,2]
[313732360,1707630481873,157.00837165,0.00021902,2]
[313732361,1707630487664,213.35535793,0.00022,2]
[313732362,1707630488710,1303.77,0.00021918,2]
[313732363,1707630496740,1209.8078839,0.00022,2]
[313732364,1707630496835,250.0,0.0002185,2]
[313732365,1707630499164,150.0,0.0002185,2]
[313732366,1707630510549,175.74,0.00016712,2]
[313732367,1707630525862,176.13371295,0.00021902,2]
[313732369,1707630563111,-4543.12808386,0.00022001,2]
[313732370,1707630563131,-414.20344399,0.00022002,2]
[313732371,1707630563153,-205.96184684,0.00022003,2]
[313732372,1707630563173,-356.86950069,0.00022003,2]
[313732373,1707630563278,150.0,0.0002185,2]
[313732374,1707630573086,-213.35535793,0.00022,2]
[313732375,1707630573105,-93.98651958,0.00022003,2]
[313732376,1707630573125,-167.0,0.00022013,2]
[313732377,1707630573145,-258.41,0.00022032,2]
[313732378,1707630573166,-157.00837163,0.00022045,2]
[313732379,1707630573186,-176.13371295,0.00022048,2]
[313732380,1707630573208,-150.52,0.00022083,2]
[313732381,1707630573228,-150.0,0.00022147,2]
[313732382,1707630573248,-150.0,0.00022147,2]
[313732383,1707630573268,-249.77897445,0.00022148,2]
[313732384,1707630573288,-381.72923343,0.00022148,2]
[313732385,1707630573307,-423.74363362,0.00022148,2]
[313732386,1707630573327,-156.20504003,0.00022148,2]
[313732387,1707630573345,-534.19210775,0.00022148,2]
[313732388,1707630573364,-221.40677971,0.00022148,2]
[313732389,1707630573383,-1809.040896,0.00022148,2]
[313732390,1707630573402,-5542.7476156,0.00022148,2]
[313732391,1707630573422,-499.99,0.00022148,2]
[313732392,1707630573440,-150.99,0.00022148,2]
[313732393,1707630573459,-959.82,0.00022148,2]
[313732394,1707630573477,-3314.28,0.00022148,2]
[313732395,1707630573496,-529.53,0.00022148,2]
[313732396,1707630573516,-3168.51,0.00022148,2]
[313732397,1707630573535,-3337.43,0.00022148,2]
[313732398,1707630573554,-4006.31057612,0.00022149,2]
[313732399,1707630573572,-1294.84852586,0.00022153,2]
[313732400,1707630573599,-200.0,0.00022155,2]
[313732401,1707630573624,-258.41,0.00022169,2]
[313732402,1707630573646,-1829.37042078,0.0002218,2]
[313732403,1707630573670,-500.93220998,0.00022183,2]
[313732404,1707630573689,-181.53570048,0.00022183,2]
[313732405,1707630573708,-282.26263637,0.00022183,2]
[313732406,1707630573728,-302.1607977,0.00022183,2]
[313732407,1707630573747,-1237.3626184,0.00022183,2]
[313732408,1707630573767,-5213.40299874,0.00022184,2]
[313732409,1707630573786,-2500.0,0.00022184,2]
[313732410,1707630573805,-175.03989056,0.00022185,2]
[313732411,1707630573824,-39449.7974,0.00022185,2]
[313732412,1707630573842,-16844.98198233,0.00022185,2]
[313732435,1707630606812,167.51,0.00021834,2]
[313732449,1707630632428,-150.0,0.00022036,2]
[313732450,1707630632438,-150.0,0.00022043,2]
[313732451,1707630632449,-150.0,0.00022061,2]
[313732452,1707630632459,-150.0,0.00022063,2]
[313732453,1707630632470,-150.0,0.00022067,2]
[313732454,1707630632479,-150.0,0.0002207,2]
[313732455,1707630632490,-299.15692731,0.00022085,2]
[313732456,1707630632508,-691.81853185,0.00022085,2]
[313732457,1707630632521,-3459.30250167,0.00022085,2]
[313732487,1707630638285,-1896.15426,0.00022085,2]
[313732490,1707630638553,-4825.16056094,0.00022085,2]
[313732705,1707630640835,-1504.20191762,0.00022085,2]
[313732707,1707630640847,-391.76,0.00022085,2]
[313732791,1707630641631,-2328.10903142,0.00022085,2]
[313732794,1707630641643,-4019.09127962,0.00022085,2]
[313732796,1707630641654,-825.28,0.00022085,2]
[313732798,1707630641666,-756.131,0.00022085,2]
[313732800,1707630641678,-315.6,0.00022085,2]
[313732810,1707630641754,-18138.03138957,0.00022085,2]
[313732812,1707630641763,-206.9592,0.00022085,2]
[313732814,1707630641772,-150.0,0.00022095,2]
[313732816,1707630641782,-150.0,0.000221,2]
[313732818,1707630641791,-150.0,0.00022101,2]
[313732820,1707630641800,-150.0,0.00022104,2]
[313732822,1707630641810,-150.0,0.00022108,2]
[313732824,1707630641819,-150.0,0.00022108,2]
[313732826,1707630641829,-150.0,0.00022114,2]
[313732828,1707630641839,-150.0,0.00022116,2]
[313732830,1707630641848,-150.0,0.00022122,2]
[313732832,1707630641857,-150.0,0.00022123,2]
[313732834,1707630641867,-150.0,0.00022127,2]
[313732836,1707630641876,-150.0,0.00022128,2]
[313732838,1707630641885,-150.0,0.00022134,2]
[313732840,1707630641894,-150.0,0.00022136,2]
[313732842,1707630641903,-150.0,0.00022137,2]
[313732844,1707630641912,-150.0,0.00022139,2]
[313732846,1707630641921,-150.0,0.00022143,2]
[313732848,1707630641930,-150.0,0.00022148,2]
[313732850,1707630641939,-150.0,0.00022157,2]
[313732852,1707630641947,-150.0,0.00022158,2]
[313732854,1707630641956,-150.0,0.00022162,2]
[313732856,1707630641968,-150.0,0.00022169,2]
[313732858,1707630641977,-150.0,0.00022172,2]
[313732860,1707630641987,-150.0,0.00022177,2]
[313732862,1707630641996,-4540.70525668,0.00022183,2]
[313732864,1707630642005,-288.5742693,0.00022183,2]
[313732866,1707630642014,-731.1,0.00022184,2]
[313732868,1707630642025,-2000.0,0.00022185,2]
[313732870,1707630642035,-200.0,0.00022185,2]
[313732872,1707630642045,-83155.01801767,0.00022185,2]
[313732874,1707630642054,-13922.0957,0.00022185,2]
[313732876,1707630642064,-7772.33281231,0.00022186,2]
[313732878,1707630642074,-6084.69932666,0.00022187,2]
[313732880,1707630642083,-182.15853307,0.00022188,2]
[313732882,1707630642092,-157.00837163,0.00022188,2]
[313732884,1707630642101,-150.0,0.00022196,2]
[313732886,1707630642110,-150.0,0.00022197,2]
[313732888,1707630642120,-150.0,0.00022199,2]
[313732890,1707630642130,-150.0,0.00022202,2]
[313732892,1707630642139,-150.0,0.00022205,2]
[313732894,1707630642149,-150.0,0.00022206,2]
[313732896,1707630642159,-150.0,0.00022211,2]
[313732898,1707630642168,-150.0,0.00022212,2]
[313732900,1707630642177,-150.0,0.00022219,2]
[313732902,1707630642187,-150.0,0.0002222,2]
[313732904,1707630642196,-150.0,0.0002223,2]
[313732906,1707630642206,-150.0,0.00022231,2]
[313732908,1707630642215,-150.0,0.00022232,2]
[313732910,1707630642223,-150.0,0.00022235,2]
[313732912,1707630642234,-150.52,0.00022243,2]
[313732914,1707630642243,-150.0,0.00022243,2]
[313732916,1707630642252,-150.0,0.00022248,2]
[313732918,1707630642261,-150.0,0.00022249,2]
[313732920,1707630642270,-150.0,0.0002225,2]
[313732922,1707630642279,-150.0,0.0002225,2]
[313732924,1707630642289,-150.0,0.00022254,2]
[313732926,1707630642299,-150.0,0.0002226,2]
[313732928,1707630642308,-150.0,0.00022262,2]
[313732930,1707630642317,-150.0,0.00022267,2]
[313732932,1707630642327,-150.0,0.00022268,2]
[313732934,1707630642337,-150.0,0.00022269,2]
[313732936,1707630642346,-150.0,0.00022271,2]
[313732938,1707630642356,-150.0,0.00022275,2]
[313732940,1707630642366,-150.0,0.00022278,2]
[313732943,1707630642376,-151.0211,0.00022278,3]
[313732945,1707630642385,-151.0211,0.00022278,3]
[313732947,1707630642394,-151.0211,0.00022278,3]
[313732949,1707630642403,-151.0211,0.00022278,3]
[313732951,1707630642412,-151.0211,0.00022278,3]
[313732953,1707630642423,-158705.81246094,0.00022278,2]
[313732955,1707630642438,-848.02444771,0.00022278,2]
[313733042,1707630643215,-7409.86951319,0.00022278,2]
[313733161,1707630645051,-4310.76913815,0.00022278,2]
[313733164,1707630645070,-886.32444843,0.00022278,2]
[313733166,1707630645083,-271.83505795,0.00022278,2]
[313733170,1707630645104,-381.87407514,0.00022278,2]
[313733173,1707630645117,-12059.49241253,0.00022278,2]
[313733177,1707630645142,-278.02097649,0.00022278,2]
[313733179,1707630645153,-208108.79199406,0.00022278,2]
[313733186,1707630645202,-380136.20827125,0.00022278,2]
[313733188,1707630645214,-316.78402769,0.00022278,2]
[313733190,1707630645225,-1230.42659092,0.00022278,2]
[313733191,1707630645237,-46470.28601855,0.00022278,2]
[313733192,1707630645248,-364.34811822,0.00022278,2]
[313733193,1707630645259,-4663.14935267,0.00022278,2]
[313733269,1707630647643,-5476.94382083,0.00022278,2]
[313733270,1707630647656,-3766.6794396,0.00022278,2]
[313733271,1707630647669,-2004.35071057,0.00022278,2]
[313733272,1707630647681,-644.28818466,0.00022278,2]
[313733273,1707630647698,-11707.674368,0.00022278,2]
[313733274,1707630647710,-441.22707486,0.00022278,2]
[313733275,1707630655436,573.8,0.00021918,2]
[313733276,1707630664654,409.92,0.00021376,2]
[313733277,1707630692057,170.88,0.0001698,2]
[313733278,1707630721548,5264.23508838,0.000155,2]
[313733280,1707630725698,411.03995021,0.0002,2]
[313733281,1707630747654,1889.62840885,0.00015,2]
[313733282,1707630784042,150.52,0.00021363,2]
[313733283,1707630791294,164.21,0.00021204,2]
[313733284,1707630791635,205.0,9.8e-05,2]
[313733285,1707630795128,3480.27,0.0001305,2]
[313733286,1707630795148,1457.34163117,0.0001305,2]
[313733287,1707630795536,239.786142,0.000101,2]
[313733288,1707630800726,316.52,0.00021186,2]
[313733289,1707630813599,155.84,0.00021149,2]
[313733290,1707630813640,155.841,0.00021149,2]
[313733291,1707630813671,6232.233,0.00020936,2]
[313733292,1707630813701,6232.234,0.00020936,2]
[313733293,1707630813726,155.841,0.00021149,2]
[313733294,1707630813760,155.841,0.00021149,2]
[313733295,1707630813785,6232.234,0.00020936,2]
[313733296,1707630813917,6232.234,0.00020936,2]
[313733297,1707630813968,6232.234,0.00020936,2]
[313733298,1707630821239,1955.67129715,0.0002,2]
[313733299,1707630845471,250.0,0.00021918,2]
[313733300,1707630870988,177.2,0.00022,2]
[313733301,1707630879818,266.12,0.00021192,2]
[313733302,1707630881246,258.41,0.00022,2]
[313733303,1707630919881,200.0,0.00021194,2]
[313733304,1707630926939,224.17105612,0.00021955,4]
[313733305,1707630950894,224.17105612,0.00021955,4]
[313733306,1707630952595,530.79,0.00019272,2]
[313733307,1707630952803,530.79,0.00021536,2]
[313733308,1707630970895,164.24894388,0.00021955,4]
[313733309,1707630970916,59.92211224,0.00021955,4]
[313733310,1707630973897,1603.91,0.00021192,2]
[313733311,1707630990909,354.89995358,0.00021955,4]
[313733312,1707630994235,200.0,0.00021416,2]
[313733313,1707631021673,2480.81,0.00021188,2]
[313733315,1707631082461,311.35,0.0002208,14]
[313733316,1707631127835,250.0,0.00021188,2]
[313733317,1707631185602,672.06,0.00021191,2]
[313733319,1707631262900,218.87,0.0002119,2]
[313733322,1707631342964,266.12,0.00021203,2]
[313733323,1707631350327,160.26541988,0.00021938,2]
[313733324,1707631353705,200.0,0.00021747,2]
[313733325,1707631403018,190.66,0.00021354,2]
[313733326,1707631403227,190.66,0.0002191,2]
[313733327,1707631438483,477.71,0.00019229,2]
[313733328,1707631438721,477.71,0.00021493,2]
[313733329,1707631455897,1336.59,0.00021147,2]
[313733330,1707631503869,177.2,0.00022,2]
[313733331,1707631512604,258.41,0.00022,2]
[313733333,1707631622982,30038.02778269,0.00022,2]
[313733334,1707631653838,462.35,0.00021142,2]
[313733335,1707631698660,264.71552263,0.00022,2]
[313733336,1707631720688,160.26541988,0.00021938,2]
[313733349,1707631735483,316.52,0.00021142,2]
[313733353,1707631761222,-155.0,0.00022003,2]
[313733354,1707631761242,-157.80304487,0.00022004,2]
[313733355,1707631761261,-150.0,0.00022023,2]
[313733356,1707631761283,-150.0,0.00022033,2]
[313733357,1707631761304,-150.0,0.00022033,2]
[313733358,1707631761325,-4511.3509436,0.00022037,2]
[313733359,1707631761348,-2172.13627864,0.00022038,2]
[313733360,1707631761377,-150.0,0.00022056,2]
[313733361,1707631761399,-364.1862,0.00022077,2]
[313733362,1707631761419,-1412.1497,0.00022077,2]
[313733363,1707631761440,-2024.57739062,0.00022078,2]
[313733364,1707631761462,-499.99,0.00022078,2]
[313733365,1707631761482,-1113.29,0.00022078,2]
[313733366,1707631761502,-308.42,0.00022078,2]
[313733367,1707631761522,-688.36,0.00022078,2]
[313733368,1707631761542,-150.0,0.00022085,2]
[313733369,1707631761562,-1500.0,0.00022091,2]
[313733370,1707631761585,-150.0,0.00022095,2]
[313733371,1707631761605,-200.0,0.00022113,2]
[313733372,1707631761626,-1152.45699272,0.00022117,2]
[313733373,1707631761648,-150.0,0.0002212,2]
[313733374,1707631761670,-150.0,0.00022122,2]
[313733375,1707631761692,-194.36966903,0.00022123,2]
[313733376,1707631761712,-150.0,0.00022127,2]
[313733377,1707631761735,-150.0,0.00022132,2]
[313733378,1707631761758,-150.0,0.00022133,2]
[313733379,1707631761779,-150.0,0.00022135,2]
[313733380,1707631761802,-150.0,0.00022137,2]
[313733381,1707631761824,-515.84,0.00022137,2]
[313733382,1707631761846,-150.0,0.00022139,2]
[313733383,1707631761868,-150.0,0.00022146,2]
[313733384,1707631761887,-150.0,0.00022146,2]
[313733385,1707631761908,-150.0,0.0002215,2]
[313733386,1707631761930,-160.26541988,0.0002215,2]
[313733387,1707631761953,-150.0,0.00022152,2]
[313733388,1707631761973,-150.0,0.00022155,2]
[313733389,1707631761994,-150.0,0.00022156,2]
[313733390,1707631762015,-150.0,0.00022157,2]
[313733391,1707631762034,-800.0,0.00022164,2]
[313733392,1707631762055,-306.14828674,0.00022166,2]
[313733393,1707631762325,-150.0,0.00022168,2]
[313733394,1707631762347,-150.0,0.0002217,2]
[313733395,1707631762371,-150.0,0.00022171,2]
[313733396,1707631762392,-150.0,0.00022172,2]
[313733397,1707631762414,-150.0,0.00022175,2]
[313733398,1707631762437,-150.0,0.00022176,2]
[313733399,1707631762458,-150.0,0.00022176,2]
[313733400,1707631762480,-4893.7070739,0.00022176,2]
[313733401,1707631768121,-5938.02812042,0.00022176,2]
[313733402,1707631768142,-18828.83899653,0.00022177,2]
[313733406,1707631787879,12060.21193095,0.00021142,2]
[313733407,1707631788676,404.05961647,0.00020508,2]
[313733408,1707631793636,404.41481397,0.00021142,2]
[313733409,1707631798586,421.92602062,0.00021288,2]
[313733412,1707631801045,170.88,0.00016987,2]
[313733413,1707631803284,271.83605923,0.00021142,2]
[313733414,1707631805383,404.05961647,0.00020508,2]
[313733415,1707631805808,-205.54329488,0.00022175,2]
[313733416,1707631805829,-287.06142605,0.00022176,2]
[313733417,1707631805850,-226171.16100347,0.00022177,2]
[313733418,1707631805872,-726.98,0.00022177,2]
[313733419,1707631805892,-155.58013518,0.00022177,2]
[313733420,1707631805912,-25831.7009,0.00022178,2]
[313733421,1707631805933,-100000.0,0.00022178,2]
[313733422,1707631805954,-189.8071,0.00022178,2]
[313733423,1707631805976,-150.0,0.00022179,2]
[313733424,1707631805997,-32219.7481,0.00022182,2]
[313733425,1707631806017,-500.0,0.00022182,2]
[313733426,1707631806037,-1000.0,0.00022182,2]
[313733427,1707631806058,-150.0,0.00022184,2]
[313733428,1707631806080,-150.0,0.00022185,2]
[313733429,1707631806102,-150.0,0.00022186,2]
[313733430,1707631806123,-163.79858637,0.00022187,2]
[313733431,1707631806144,-150.0,0.00022188,2]
[313733432,1707631806166,-150.0,0.00022192,2]
[313733433,1707631806187,-150.0,0.00022193,2]
[313733434,1707631806208,-150.0,0.00022195,2]
[313733435,1707631806229,-150.0,0.00022196,2]
[313733436,1707631806249,-316.52,0.000222,2]
[313733437,1707631806271,-150.0,0.00022203,2]
[313733438,1707631806292,-150.0,0.00022205,2]
[313733439,1707631806313,-150.0,0.00022213,2]
[313733440,1707631806334,-157.80304487,0.00022215,2]
[313733441,1707631806355,-150.0,0.00022217,2]
[313733442,1707631806379,-150.0,0.0002222,2]
[313733443,1707631806400,-150.0,0.00022222,2]
[313733444,1707631806422,-150.0,0.00022227,2]
[313733445,1707631806444,-150.0,0.00022228,2]
[313733446,1707631806468,-150.0,0.0002223,2]
[313733447,1707631806491,-150.0,0.0002223,2]
[313733448,1707631806511,-151.58055429,0.00022232,2]
[313733449,1707631806534,-150.0,0.00022245,2]
[313733450,1707631806555,-150.0,0.00022246,2]
[313733451,1707631806577,-800.0,0.00022247,2]
[313733452,1707631806598,-218.87,0.0002225,2]
[313733453,1707631806619,-150.0,0.0002225,2]
[313733454,1707631806640,-150.0,0.00022253,2]
[313733455,1707631806663,-150.0,0.00022254,2]
[313733456,1707631806685,-150.0,0.00022256,2]
[313733457,1707631806706,-150.0,0.00022261,2]
[313733458,1707631806730,-150.0,0.00022269,2]
[313733459,1707631806755,-151.0211,0.00022277,3]
[313733460,1707631806777,-151.0211,0.00022277,3]
[313733461,1707631806798,-151.0211,0.00022277,3]
[313733462,1707631806818,-151.0211,0.00022277,3]
[313733463,1707631806842,-151.0211,0.00022277,3]
[313733464,1707631806867,-151.0211,0.00022277,3]
[313733465,1707631806889,-151.0211,0.00022277,3]
[313733466,1707631806911,-151.0211,0.00022277,3]
[313733467,1707631806934,-151.0211,0.00022277,3]
[313733468,1707631806955,-151.0211,0.00022277,3]
[313733469,1707631806975,-47965.84925899,0.00022282,2]
[313733470,1707631806995,-150.0,0.00022282,2]
[313733471,1707631807017,-150.0,0.00022286,2]
[313733472,1707631807041,-1548.82,0.00022286,2]
[313733473,1707631807064,-1548.82,0.00022286,2]
[313733474,1707631807084,-1548.82,0.00022286,2]
[313733475,1707631807105,-1548.82,0.00022286,2]
[313733476,1707631807124,-1548.82,0.00022286,2]
[313733477,1707631807145,-1548.82,0.00022286,2]
[313733478,1707631807166,-1548.82,0.00022286,2]
[313733479,1707631807186,-1548.82,0.00022286,2]
[313733480,1707631807207,-1548.82,0.00022286,2]
[313733481,1707631807228,-1548.82,0.00022286,2]
[313733482,1707631807248,-1548.82,0.00022286,2]
[313733483,1707631807269,-1548.82,0.00022286,2]
[313733484,1707631807289,-1548.82,0.00022286,2]
[313733485,1707631807309,-1548.82,0.00022286,2]
[313733486,1707631807331,-1548.82,0.00022286,2]
[313733487,1707631807352,-1548.82,0.00022286,2]
[313733488,1707631807375,-1548.82,0.00022286,2]
[313733489,1707631807396,-1548.82,0.00022286,2]
[313733490,1707631807417,-1548.82,0.00022286,2]
[313733491,1707631807438,-1548.82,0.00022286,2]
[313733492,1707631807461,-1548.82,0.00022286,2]
[313733493,1707631807482,-1548.82,0.00022286,2]
[313733494,1707631807505,-1548.82,0.00022286,2]
[313733495,1707631807527,-1548.87124813,0.00022286,2]
[313733496,1707631807549,-476.2800257,0.00022287,2]
[313733497,1707631807572,-364842.56253338,0.00022287,2]
[313733498,1707631807594,-150.0,0.00022287,2]
[313733499,1707631807616,-150.0,0.00022301,2]
[313733500,1707631807640,-150.0,0.00022303,2]
[313733501,1707631807664,-967.78104715,0.00022307,2]
[313733502,1707631807689,-150.0,0.00022307,2]
[313733503,1707631807714,-150.0,0.00022309,2]
[313733504,1707631807740,-150.0,0.00022312,2]
[313733505,1707631807766,-150.0,0.00022316,2]
[313733506,1707631807801,-150.0,0.00022317,2]
[313733507,1707631807828,-150.0,0.00022318,2]
[313733508,1707631808155,-150.0,0.00022321,2]
[313733509,1707631808180,-150.0,0.00022322,2]
[313733510,1707631808203,-158.95313523,0.00022324,2]
[313733511,1707631808228,-150.0,0.00022325,2]
[313733512,1707631808251,-150.0,0.0002233,2]
[313733513,1707631808278,-150.0,0.00022332,2]
[313733514,1707631808301,-150.0,0.0002234,2]
[313733515,1707631808323,-150.0,0.00022351,2]
[313733516,1707631808347,-150.0,0.00022353,2]
[313733517,1707631808373,-160.26541988,0.00022363,2]
[313733518,1707631808396,-150.0,0.00022363,2]
[313733519,1707631808422,-150.0,0.00022364,2]
[313733520,1707631808446,-150.0,0.00022366,2]
[313733521,1707631808470,-150.0,0.00022368,2]
[313733522,1707631808494,-150.0,0.0002237,2]
[313733523,1707631808516,-150.0,0.00022372,2]
[313733524,1707631808541,-150.0,0.00022372,2]
[313733525,1707631808564,-772.78127168,0.00022376,2]
[313733526,1707631808586,-150.0,0.00022381,2]
[313733527,1707631808608,-150.0,0.00022384,2]
[313733528,1707631808630,-150.0,0.00022385,2]
[313733529,1707631808650,-4266.85156024,0.00022387,2]
[313733530,1707631808671,-151.24,0.00022388,2]
[313733531,1707631808695,-268.82241061,0.00022389,2]
[313733532,1707631808715,-294.67581057,0.0002239,2]
[313733533,1707631808737,-374.89347238,0.0002239,10]
[313733534,1707631808758,-374.89347238,0.0002239,10]
[313733535,1707631808782,-374.89347238,0.0002239,10]
[313733536,1707631808803,-169.73174065,0.00022399,2]
[313733537,1707631808826,-7124.63841133,0.000224,2]
[313733538,1707631808850,-190.66,0.00022466,2]
[313733539,1707631808871,-170.53203067,0.00022498,2]
[313733540,1707631808894,-436055.88720087,0.000225,2]
[313733541,1707631808914,-130015.56271566,0.000225,2]
[313733542,1707631808935,-1000.0,0.000225,2]
[313733543,1707631808955,-2218.921171,0.000225,2]
[313733544,1707631808976,-162.47,0.00022508,2]
[313733545,1707631808997,-163.79858637,0.00022544,2]
[313733546,1707631809018,-1294.84852587,0.00022547,2]
[313733547,1707631809039,-177.2,0.00022548,2]
[313733548,1707631809063,-160.26541988,0.00022575,2]
[313733549,1707631809083,-1500.0,0.00022737,2]
[313733550,1707631809104,-172.70999681,0.0002275,2]
[313733551,1707631809128,-5000.0,0.0002275,2]
[313733552,1707631809150,-160.26541988,0.00022787,2]
[313733553,1707631809171,-1336.59,0.00022791,2]